[Event "Titled Tuesday Blitz June 20 Late 2023"]
[White "ArchibaldCerveza29"]
[Black "Goryachkina, Aleksandra"]
[BlackFideId "4147103"]
[WhiteElo "2452"]
[BlackElo "2471"]
[Result "1/2-1/2"]
[Round "3"]
[TimeControl "180+2"]
[Date "2023.06.20"]
[WhiteClock "0:00:06"]
[BlackClock "0:00:16"]
[Board "81"]

1. e4 {[%clk 0:03:00]}  c6 {[%clk 0:02:59]} 2. d4 {[%clk 0:03:00]}  d5 {[%clk 0:03:00]} 3. exd5 {[%clk 0:03:01]}  cxd5 {[%clk 0:03:00]} 4. c4 {[%clk 0:03:02]}  Nf6 {[%clk 0:02:59]} 5. Nc3 {[%clk 0:03:02]}  Nc6 {[%clk 0:02:59]} 6. Nf3 {[%clk 0:03:02]}  a6 {[%clk 0:02:58]} 7. Bg5 {[%clk 0:02:48]}  Be6 {[%clk 0:02:55]} 8. c5 {[%clk 0:02:45]}  g6 {[%clk 0:02:54]} 9. Be2 {[%clk 0:02:41]}  Bg7 {[%clk 0:02:54]} 10. O-O {[%clk 0:02:41]}  O-O {[%clk 0:02:53]} 11. Re1 {[%clk 0:02:31]}  Ne4 {[%clk 0:02:48]} 12. Bf4 {[%clk 0:02:21]}  Bg4 {[%clk 0:02:45]} 13. h3 {[%clk 0:01:58]}  Bxf3 {[%clk 0:02:35]} 14. Bxf3 {[%clk 0:01:59]}  f5 {[%clk 0:02:24]} 15. Ne2 {[%clk 0:01:21]}  Qd7 {[%clk 0:02:16]} 16. Qa4 {[%clk 0:00:59]}  Kh8 {[%clk 0:02:09]} 17. Rad1 {[%clk 0:00:54]}  h6 {[%clk 0:02:01]} 18. Bc1 {[%clk 0:00:52]}  g5 {[%clk 0:01:56]} 19. Bxe4 {[%clk 0:00:44]}  fxe4 {[%clk 0:01:52]} 20. Ng3 {[%clk 0:00:44]}  Qe8 {[%clk 0:01:43]} 21. Rf1 {[%clk 0:00:39]}  e6 {[%clk 0:01:40]} 22. Be3 {[%clk 0:00:37]}  Qg6 {[%clk 0:01:34]} 23. b4 {[%clk 0:00:27]}  h5 {[%clk 0:01:32]} 24. Qb3 {[%clk 0:00:25]}  h4 {[%clk 0:01:29]} 25. Ne2 {[%clk 0:00:23]}  g4 {[%clk 0:01:27]} 26. Nf4 {[%clk 0:00:20]}  Qf5 {[%clk 0:01:28]} 27. g3 {[%clk 0:00:08]}  gxh3 {[%clk 0:01:24]} 28. Kh2 {[%clk 0:00:08]}  hxg3+ {[%clk 0:01:08]} 29. fxg3 {[%clk 0:00:09]}  Qg4 {[%clk 0:01:08]} 30. Nxh3 {[%clk 0:00:09]}  Rxf1 {[%clk 0:00:53]} 31. Rxf1 {[%clk 0:00:10]}  Nxd4 {[%clk 0:00:53]} 32. Bxd4 {[%clk 0:00:05]}  Bxd4 {[%clk 0:00:54]} 33. Rf4 {[%clk 0:00:06]}  Qe2+ {[%clk 0:00:52]} 34. Kh1 {[%clk 0:00:06]}  Be5 {[%clk 0:00:41]} 35. Rh4+ {[%clk 0:00:06]}  Kg7 {[%clk 0:00:41]} 36. Ng5 {[%clk 0:00:05]}  Kf6 {[%clk 0:00:27]} 37. Nh7+ {[%clk 0:00:05]}  Ke7 {[%clk 0:00:27]} 38. c6 {[%clk 0:00:05]}  Rf8 {[%clk 0:00:25]} 39. Nxf8 {[%clk 0:00:05]}  Qf1+ {[%clk 0:00:17]} 40. Kh2 {[%clk 0:00:05]}  Qe2+ {[%clk 0:00:16]} 41. Kh1 {[%clk 0:00:05]}  Qf1+ {[%clk 0:00:17]} 42. Kh2 {[%clk 0:00:06]}  Qe2+ {[%clk 0:00:16]} 43. Kh1 {[%clk 0:00:06]} 1/2-1/2


[Site "https://www.chess.com"]

[Event "Titled Tuesday Blitz June 20 Late 2023"]
[White "Balla, Tamas-Kristof"]
[Black "Leon Oquendo, Jorge"]
[WhiteFideId "1208497"]
[BlackFideId "3514803"]
[WhiteElo "2334"]
[BlackElo "2276"]
[Result "0-1"]
[Round "3"]
[TimeControl "180+2"]
[Date "2023.06.20"]
[WhiteClock "0:00:15"]
[BlackClock "0:00:59"]
[Board "82"]

1. e4 {[%clk 0:03:00]}  c5 {[%clk 0:02:58]} 2. Nf3 {[%clk 0:03:01]}  Nc6 {[%clk 0:02:58]} 3. c3 {[%clk 0:03:01]}  Nf6 {[%clk 0:02:52]} 4. e5 {[%clk 0:03:01]}  Nd5 {[%clk 0:02:53]} 5. d4 {[%clk 0:03:02]}  cxd4 {[%clk 0:02:53]} 6. cxd4 {[%clk 0:03:02]}  d6 {[%clk 0:02:53]} 7. Bc4 {[%clk 0:03:01]}  Nb6 {[%clk 0:02:53]} 8. Bb5 {[%clk 0:03:02]}  d5 {[%clk 0:02:54]} 9. Nc3 {[%clk 0:03:00]}  Bg4 {[%clk 0:02:53]} 10. a3 {[%clk 0:02:58]}  e6 {[%clk 0:02:51]} 11. h3 {[%clk 0:02:52]}  Bxf3 {[%clk 0:02:51]} 12. Qxf3 {[%clk 0:02:51]}  Rc8 {[%clk 0:02:51]} 13. Be3 {[%clk 0:02:45]}  Be7 {[%clk 0:02:51]} 14. O-O {[%clk 0:02:45]}  O-O {[%clk 0:02:41]} 15. Bd3 {[%clk 0:02:42]}  g6 {[%clk 0:02:41]} 16. Bh6 {[%clk 0:02:41]}  Re8 {[%clk 0:02:41]} 17. Ne2 {[%clk 0:02:06]}  Bg5 {[%clk 0:02:34]} 18. Bxg5 {[%clk 0:02:03]}  Qxg5 {[%clk 0:02:35]} 19. Rad1 {[%clk 0:01:55]}  Na4 {[%clk 0:02:31]} 20. b3 {[%clk 0:01:15]}  Nb2 {[%clk 0:02:11]} 21. Rb1 {[%clk 0:01:15]}  Qd2 {[%clk 0:02:06]} 22. Bb5 {[%clk 0:01:04]}  a6 {[%clk 0:01:57]} 23. Bxc6 {[%clk 0:01:04]}  Rxc6 {[%clk 0:01:58]} 24. Qg4 {[%clk 0:00:52]}  Rc2 {[%clk 0:01:54]} 25. Ng3 {[%clk 0:00:46]}  Kf8 {[%clk 0:01:31]} 26. Qh4 {[%clk 0:00:44]}  h6 {[%clk 0:01:29]} 27. Qf6 {[%clk 0:00:44]}  Qg5 {[%clk 0:01:27]} 28. Qf3 {[%clk 0:00:42]}  Rec8 {[%clk 0:01:25]} 29. a4 {[%clk 0:00:21]}  R8c3 {[%clk 0:01:21]} 30. Qf6 {[%clk 0:00:21]}  Qxf6 {[%clk 0:01:18]} 31. exf6 {[%clk 0:00:22]}  Rxb3 {[%clk 0:01:15]} 32. Rfc1 {[%clk 0:00:22]}  Rxc1+ {[%clk 0:01:13]} 33. Rxc1 {[%clk 0:00:23]}  Nc4 {[%clk 0:01:13]} 34. h4 {[%clk 0:00:22]}  Ke8 {[%clk 0:01:08]} 35. h5 {[%clk 0:00:22]}  g5 {[%clk 0:01:09]} 36. Ne2 {[%clk 0:00:21]}  Kd7 {[%clk 0:01:06]} 37. f4 {[%clk 0:00:21]}  g4 {[%clk 0:01:01]} 38. Kf2 {[%clk 0:00:17]}  Rb2 {[%clk 0:01:00]} 39. Kf1 {[%clk 0:00:16]}  Ne3+ {[%clk 0:00:59]} 40. Ke1 {[%clk 0:00:17]}  Nxg2+ {[%clk 0:00:59]} 41. Kf2 {[%clk 0:00:15]}  Nxf4 {[%clk 0:00:59]} 0-1


[Site "https://www.chess.com"]

[Event "Titled Tuesday Blitz June 20 Late 2023"]
[White "Jiang, Andrew"]
[Black "DopplerCharlotteDeWitte"]
[WhiteFideId "30953510"]
[WhiteElo "1883"]
[BlackElo "2659"]
[Result "1/2-1/2"]
[Round "3"]
[TimeControl "180+2"]
[Date "2023.06.20"]
[WhiteClock "0:01:40"]
[BlackClock "0:00:42"]
[Board "85"]

1. e4 {[%clk 0:03:00]}  c5 {[%clk 0:03:00]} 2. c3 {[%clk 0:02:59]}  e6 {[%clk 0:02:57]} 3. d4 {[%clk 0:02:57]}  cxd4 {[%clk 0:02:58]} 4. cxd4 {[%clk 0:02:57]}  d5 {[%clk 0:02:59]} 5. e5 {[%clk 0:02:57]}  Nc6 {[%clk 0:02:59]} 6. Nf3 {[%clk 0:02:56]}  Nge7 {[%clk 0:02:59]} 7. Bd3 {[%clk 0:02:51]}  Nf5 {[%clk 0:02:59]} 8. Bxf5 {[%clk 0:02:47]}  exf5 {[%clk 0:03:00]} 9. Nc3 {[%clk 0:02:47]}  Be6 {[%clk 0:02:58]} 10. a3 {[%clk 0:02:45]}  Be7 {[%clk 0:02:57]} 11. h4 {[%clk 0:02:41]}  h6 {[%clk 0:02:56]} 12. Bf4 {[%clk 0:02:34]}  Qb6 {[%clk 0:02:54]} 13. b4 {[%clk 0:02:32]}  Rc8 {[%clk 0:02:40]} 14. Na4 {[%clk 0:02:31]}  Qb5 {[%clk 0:02:30]} 15. Nc3 {[%clk 0:02:30]}  Qc4 {[%clk 0:02:10]} 16. Ne2 {[%clk 0:02:30]}  a5 {[%clk 0:02:02]} 17. Rc1 {[%clk 0:02:25]}  Qb5 {[%clk 0:02:00]} 18. Nc3 {[%clk 0:02:22]}  Qb6 {[%clk 0:02:01]} 19. Na4 {[%clk 0:02:19]}  Qb5 {[%clk 0:01:52]} 20. Nc3 {[%clk 0:02:18]}  Qb6 {[%clk 0:01:51]} 21. Na4 {[%clk 0:02:18]}  Qd8 {[%clk 0:01:51]} 22. Nc5 {[%clk 0:02:12]}  axb4 {[%clk 0:01:48]} 23. axb4 {[%clk 0:02:12]}  O-O {[%clk 0:01:42]} 24. b5 {[%clk 0:02:07]}  Qa5+ {[%clk 0:01:41]} 25. Bd2 {[%clk 0:01:59]}  Qxb5 {[%clk 0:01:41]} 26. Rb1 {[%clk 0:01:52]}  Qc4 {[%clk 0:01:36]} 27. Rc1 {[%clk 0:01:48]}  Qa2 {[%clk 0:01:28]} 28. Ra1 {[%clk 0:01:45]}  Qc4 {[%clk 0:01:09]} 29. Rc1 {[%clk 0:01:40]}  Qa2 {[%clk 0:00:42]} 1/2-1/2


[Site "https://www.chess.com"]

[Event "Titled Tuesday Blitz June 20 Late 2023"]
[White "Nikologorsky, Matfei"]
[Black "Martic, Ivan"]
[WhiteFideId "24102474"]
[BlackFideId "929301"]
[WhiteElo "2153"]
[BlackElo "2346"]
[Result "0-1"]
[Round "3"]
[TimeControl "180+2"]
[Date "2023.06.20"]
[WhiteClock "0:00:09"]
[BlackClock "0:01:12"]
[Board "86"]

1. e4 {[%clk 0:03:00]}  c5 {[%clk 0:02:59]} 2. Nf3 {[%clk 0:03:01]}  e6 {[%clk 0:02:59]} 3. d4 {[%clk 0:03:01]}  cxd4 {[%clk 0:03:00]} 4. Nxd4 {[%clk 0:03:01]}  a6 {[%clk 0:03:00]} 5. c4 {[%clk 0:03:01]}  Nf6 {[%clk 0:02:59]} 6. Nc3 {[%clk 0:03:02]}  Qc7 {[%clk 0:02:56]} 7. Be2 {[%clk 0:03:00]}  b6 {[%clk 0:02:54]} 8. O-O {[%clk 0:02:58]}  Bb7 {[%clk 0:02:54]} 9. f3 {[%clk 0:02:59]}  d6 {[%clk 0:02:53]} 10. Be3 {[%clk 0:02:59]}  Be7 {[%clk 0:02:51]} 11. Rc1 {[%clk 0:02:59]}  O-O {[%clk 0:02:50]} 12. Kh1 {[%clk 0:02:55]}  Nbd7 {[%clk 0:02:49]} 13. Qe1 {[%clk 0:02:42]}  Rac8 {[%clk 0:02:46]} 14. Qf2 {[%clk 0:02:41]}  Qb8 {[%clk 0:02:43]} 15. Rfd1 {[%clk 0:02:40]}  Rfe8 {[%clk 0:02:41]} 16. a3 {[%clk 0:02:29]}  Bd8 {[%clk 0:02:40]} 17. b4 {[%clk 0:02:28]}  Bc7 {[%clk 0:02:40]} 18. Qg1 {[%clk 0:02:26]}  h5 {[%clk 0:02:38]} 19. Nb3 {[%clk 0:02:14]}  h4 {[%clk 0:02:25]} 20. Na4 {[%clk 0:02:02]}  b5 {[%clk 0:02:15]} 21. cxb5 {[%clk 0:02:01]}  axb5 {[%clk 0:02:16]} 22. Bxb5 {[%clk 0:01:58]}  h3 {[%clk 0:02:16]} 23. Nc3 {[%clk 0:01:30]}  d5 {[%clk 0:02:11]} 24. exd5 {[%clk 0:01:25]}  Be5 {[%clk 0:01:58]} 25. dxe6 {[%clk 0:01:18]}  Rxe6 {[%clk 0:01:56]} 26. Bxd7 {[%clk 0:01:07]}  Nxd7 {[%clk 0:01:56]} 27. Rxd7 {[%clk 0:01:07]}  Rg6 {[%clk 0:01:51]} 28. Qf2 {[%clk 0:00:42]}  hxg2+ {[%clk 0:01:49]} 29. Qxg2 {[%clk 0:00:37]}  Rxg2 {[%clk 0:01:45]} 30. Kxg2 {[%clk 0:00:38]}  Rxc3 {[%clk 0:01:41]} 31. Rxc3 {[%clk 0:00:35]}  Bxc3 {[%clk 0:01:42]} 32. Nc5 {[%clk 0:00:36]}  Bc6 {[%clk 0:01:36]} 33. Rd3 {[%clk 0:00:28]}  Be5 {[%clk 0:01:32]} 34. Nd7 {[%clk 0:00:17]}  Bxd7 {[%clk 0:01:30]} 35. Rxd7 {[%clk 0:00:17]}  Bxh2 {[%clk 0:01:29]} 36. Bf2 {[%clk 0:00:16]}  Bf4 {[%clk 0:01:25]} 37. Rd4 {[%clk 0:00:16]}  Qe5 {[%clk 0:01:24]} 38. Re4 {[%clk 0:00:16]}  Qg5+ {[%clk 0:01:24]} 39. Kf1 {[%clk 0:00:17]}  f5 {[%clk 0:01:22]} 40. Re8+ {[%clk 0:00:16]}  Kh7 {[%clk 0:01:18]} 41. Re2 {[%clk 0:00:17]}  Qh5 {[%clk 0:01:13]} 42. Rc2 {[%clk 0:00:16]}  Qxf3 {[%clk 0:01:12]} 43. b5 {[%clk 0:00:09]}  Qd1+ {[%clk 0:01:12]} 0-1


[Site "https://www.chess.com"]

[Event "Titled Tuesday Blitz June 20 Late 2023"]
[White "Lopez Mulet, Inigo"]
[Black "Ai, Evan"]
[WhiteFideId "22235620"]
[BlackFideId "2094770"]
[WhiteElo "2302"]
[BlackElo "1963"]
[Result "0-1"]
[Round "3"]
[TimeControl "180+2"]
[Date "2023.06.20"]
[WhiteClock "0:00:27"]
[BlackClock "0:00:05"]
[Board "90"]

1. Nf3 {[%clk 0:02:57]}  Nf6 {[%clk 0:02:58]} 2. e4 {[%clk 0:02:57]}  Nxe4 {[%clk 0:02:58]} 3. d4 {[%clk 0:02:56]}  d5 {[%clk 0:02:58]} 4. Bd3 {[%clk 0:02:57]}  Bf5 {[%clk 0:02:57]} 5. O-O {[%clk 0:02:58]}  e6 {[%clk 0:02:57]} 6. Re1 {[%clk 0:02:56]}  Nd7 {[%clk 0:02:57]} 7. Nbd2 {[%clk 0:02:56]}  Nxd2 {[%clk 0:02:53]} 8. Bxf5 {[%clk 0:02:56]}  Nxf3+ {[%clk 0:02:52]} 9. Qxf3 {[%clk 0:02:56]}  Be7 {[%clk 0:02:52]} 10. Bd3 {[%clk 0:02:51]}  Nf6 {[%clk 0:02:53]} 11. c3 {[%clk 0:02:51]}  h6 {[%clk 0:02:52]} 12. Bf4 {[%clk 0:02:51]}  Bd6 {[%clk 0:02:52]} 13. Be5 {[%clk 0:02:47]}  Bxe5 {[%clk 0:02:52]} 14. dxe5 {[%clk 0:02:44]}  Nd7 {[%clk 0:02:51]} 15. Qg4 {[%clk 0:02:44]}  Qg5 {[%clk 0:02:50]} 16. Qb4 {[%clk 0:02:44]}  b6 {[%clk 0:02:48]} 17. f4 {[%clk 0:02:44]}  Qe7 {[%clk 0:02:48]} 18. Qa4 {[%clk 0:02:44]}  O-O {[%clk 0:02:42]} 19. Qd1 {[%clk 0:02:45]}  Nc5 {[%clk 0:02:38]} 20. Bc2 {[%clk 0:02:45]}  Rad8 {[%clk 0:02:38]} 21. b4 {[%clk 0:02:42]}  Nd7 {[%clk 0:02:35]} 22. Qd3 {[%clk 0:02:42]}  g6 {[%clk 0:02:34]} 23. Re3 {[%clk 0:02:43]}  Kh7 {[%clk 0:02:19]} 24. Rae1 {[%clk 0:02:36]}  c5 {[%clk 0:02:19]} 25. a3 {[%clk 0:02:36]}  a5 {[%clk 0:02:12]} 26. Rh3 {[%clk 0:02:30]}  axb4 {[%clk 0:02:07]} 27. axb4 {[%clk 0:02:27]}  cxb4 {[%clk 0:02:08]} 28. f5 {[%clk 0:02:16]}  exf5 {[%clk 0:02:06]} 29. Qd2 {[%clk 0:02:14]}  h5 {[%clk 0:02:03]} 30. Bxf5 {[%clk 0:02:14]}  Kg7 {[%clk 0:01:55]} 31. e6 {[%clk 0:02:14]}  Nf6 {[%clk 0:01:40]} 32. Qg5 {[%clk 0:02:08]}  bxc3 {[%clk 0:01:30]} 33. Rg3 {[%clk 0:02:03]}  Ng8 {[%clk 0:01:10]} 34. Qxh5 {[%clk 0:02:03]}  Qf6 {[%clk 0:01:03]} 35. e7 {[%clk 0:01:59]}  Nxe7 {[%clk 0:00:52]} 36. Rxe7 {[%clk 0:01:43]}  Qxe7 {[%clk 0:00:36]} 37. Rxg6+ {[%clk 0:01:42]}  fxg6 {[%clk 0:00:37]} 38. Qxg6+ {[%clk 0:01:43]}  Kh8 {[%clk 0:00:36]} 39. Qh6+ {[%clk 0:01:43]}  Kg8 {[%clk 0:00:33]} 40. Qg6+ {[%clk 0:01:36]}  Qg7 {[%clk 0:00:31]} 41. Be6+ {[%clk 0:01:33]}  Rf7 {[%clk 0:00:31]} 42. Bxf7+ {[%clk 0:01:31]}  Kf8 {[%clk 0:00:32]} 43. Qxb6 {[%clk 0:01:31]}  Qg5 {[%clk 0:00:18]} 44. Bh5 {[%clk 0:01:21]}  Qc1+ {[%clk 0:00:12]} 45. Kf2 {[%clk 0:01:21]}  Qf4+ {[%clk 0:00:12]} 46. Ke2 {[%clk 0:01:18]}  Qe5+ {[%clk 0:00:10]} 47. Kf2 {[%clk 0:01:13]}  Rd6 {[%clk 0:00:09]} 48. Qb8+ {[%clk 0:01:13]}  Kg7 {[%clk 0:00:09]} 49. Qc7+ {[%clk 0:01:10]}  Kh6 {[%clk 0:00:10]} 50. Bf3 {[%clk 0:01:10]}  d4 {[%clk 0:00:06]} 51. g4 {[%clk 0:00:55]}  Qxh2+ {[%clk 0:00:06]} 52. Kf1 {[%clk 0:00:51]}  Qh3+ {[%clk 0:00:07]} 53. Bg2 {[%clk 0:00:45]}  Qd3+ {[%clk 0:00:05]} 54. Kg1 {[%clk 0:00:44]}  Qe3+ {[%clk 0:00:06]} 55. Kh2 {[%clk 0:00:41]}  Qf4+ {[%clk 0:00:06]} 56. Kh1 {[%clk 0:00:42]}  Rf6 {[%clk 0:00:06]} 57. g5+ {[%clk 0:00:38]}  Kxg5 {[%clk 0:00:07]} 58. Qg7+ {[%clk 0:00:38]}  Rg6 {[%clk 0:00:07]} 59. Qe7+ {[%clk 0:00:39]}  Kg4 {[%clk 0:00:07]} 60. Qd7+ {[%clk 0:00:37]}  Kh4 {[%clk 0:00:07]} 61. Qe7+ {[%clk 0:00:35]}  Rg5 {[%clk 0:00:05]} 62. Qe1+ {[%clk 0:00:32]}  Rg3 {[%clk 0:00:04]} 63. Qe7+ {[%clk 0:00:32]}  Qg5 {[%clk 0:00:04]} 64. Qe4+ {[%clk 0:00:31]}  Rg4 {[%clk 0:00:05]} 65. Qe1+ {[%clk 0:00:31]}  Kh5 {[%clk 0:00:05]} 66. Qe8+ {[%clk 0:00:31]}  Qg6 {[%clk 0:00:06]} 67. Qe5+ {[%clk 0:00:32]}  Kh6 {[%clk 0:00:05]} 68. Qh8+ {[%clk 0:00:31]}  Qh7 {[%clk 0:00:05]} 69. Qf6+ {[%clk 0:00:32]}  Rg6 {[%clk 0:00:05]} 70. Qf8+ {[%clk 0:00:30]}  Kg5+ {[%clk 0:00:05]} 71. Kg1 {[%clk 0:00:31]}  Qg7 {[%clk 0:00:04]} 72. Qc5+ {[%clk 0:00:28]}  Kh6 {[%clk 0:00:04]} 73. Kf1 {[%clk 0:00:27]}  Rxg2 {[%clk 0:00:04]} 74. Qd6+ {[%clk 0:00:28]}  Qg6 {[%clk 0:00:04]} 75. Qf4+ {[%clk 0:00:28]}  Rg5 {[%clk 0:00:05]} 76. Qf8+ {[%clk 0:00:28]}  Kh5 {[%clk 0:00:05]} 77. Qf3+ {[%clk 0:00:28]}  Rg4 {[%clk 0:00:05]} 78. Qh3+ {[%clk 0:00:28]}  Kg5 {[%clk 0:00:05]} 79. Ke2 {[%clk 0:00:28]}  Qe4+ {[%clk 0:00:05]} 80. Kf1 {[%clk 0:00:27]}  Rf4+ {[%clk 0:00:04]} 81. Kg1 {[%clk 0:00:27]}  Qe1+ {[%clk 0:00:05]} 82. Kh2 {[%clk 0:00:27]}  Rf2+ {[%clk 0:00:05]} 83. Kg3 {[%clk 0:00:27]}  Qe3# {[%clk 0:00:05]} 0-1


[Site "https://www.chess.com"]

[Event "Titled Tuesday Blitz June 20 Late 2023"]
[White "Rangel, Daniel"]
[Black "Domingo Nunez, Alejandro"]
[WhiteFideId "2124475"]
[BlackFideId "22245561"]
[WhiteElo "2231"]
[BlackElo "2291"]
[Result "1-0"]
[Round "3"]
[TimeControl "180+2"]
[Date "2023.06.20"]
[WhiteClock "0:01:25"]
[BlackClock "0:00:42"]
[Board "91"]

1. c4 {[%clk 0:02:58]}  g6 {[%clk 0:03:00]} 2. g3 {[%clk 0:02:59]}  Bg7 {[%clk 0:02:59]} 3. Bg2 {[%clk 0:03:00]}  d6 {[%clk 0:02:57]} 4. Nc3 {[%clk 0:03:01]}  c5 {[%clk 0:02:56]} 5. e3 {[%clk 0:03:02]}  Nd7 {[%clk 0:02:55]} 6. Nge2 {[%clk 0:03:03]}  Ngf6 {[%clk 0:02:55]} 7. O-O {[%clk 0:03:03]}  O-O {[%clk 0:02:55]} 8. b3 {[%clk 0:03:03]}  Rb8 {[%clk 0:02:56]} 9. Bb2 {[%clk 0:03:04]}  a6 {[%clk 0:02:57]} 10. d3 {[%clk 0:03:05]}  b5 {[%clk 0:02:57]} 11. Qd2 {[%clk 0:03:04]}  Bb7 {[%clk 0:02:56]} 12. Nd5 {[%clk 0:03:04]}  Bxd5 {[%clk 0:02:39]} 13. cxd5 {[%clk 0:03:05]}  e6 {[%clk 0:02:28]} 14. dxe6 {[%clk 0:03:04]}  fxe6 {[%clk 0:02:29]} 15. Rac1 {[%clk 0:02:59]}  d5 {[%clk 0:02:28]} 16. Bh3 {[%clk 0:02:55]}  Qe7 {[%clk 0:02:27]} 17. Ba3 {[%clk 0:02:55]}  b4 {[%clk 0:02:25]} 18. Bb2 {[%clk 0:02:55]}  Rbc8 {[%clk 0:02:13]} 19. Nf4 {[%clk 0:02:44]}  Rc6 {[%clk 0:02:12]} 20. d4 {[%clk 0:02:08]}  c4 {[%clk 0:02:06]} 21. bxc4 {[%clk 0:02:06]}  dxc4 {[%clk 0:02:06]} 22. Rxc4 {[%clk 0:02:05]}  Rxc4 {[%clk 0:01:43]} 23. Bxe6+ {[%clk 0:02:04]}  Kh8 {[%clk 0:01:44]} 24. Bxc4 {[%clk 0:02:04]}  g5 {[%clk 0:01:44]} 25. Nd5 {[%clk 0:02:01]}  Nxd5 {[%clk 0:01:43]} 26. Bxd5 {[%clk 0:02:02]}  Qd6 {[%clk 0:01:41]} 27. Bg2 {[%clk 0:02:02]}  Ne5 {[%clk 0:01:39]} 28. h3 {[%clk 0:01:42]}  g4 {[%clk 0:01:38]} 29. h4 {[%clk 0:01:41]}  Nf3+ {[%clk 0:01:37]} 30. Bxf3 {[%clk 0:01:41]}  gxf3 {[%clk 0:01:37]} 31. d5 {[%clk 0:01:36]}  Rf5 {[%clk 0:00:47]} 32. Bxg7+ {[%clk 0:01:30]}  Kxg7 {[%clk 0:00:48]} 33. Qd4+ {[%clk 0:01:30]}  Kh6 {[%clk 0:00:48]} 34. e4 {[%clk 0:01:27]}  Rf4 {[%clk 0:00:42]} 35. Qe3 {[%clk 0:01:25]} 1-0


[Site "https://www.chess.com"]

[Event "Titled Tuesday Blitz June 20 Late 2023"]
[White "Jaskolka, Tomasz"]
[Black "Carrasco Miranda, Andres"]
[WhiteFideId "1170791"]
[BlackFideId "3405990"]
[WhiteElo "2155"]
[BlackElo "2183"]
[Result "1-0"]
[Round "3"]
[TimeControl "180+2"]
[Date "2023.06.20"]
[WhiteClock "0:00:12"]
[BlackClock "0:00:08"]
[Board "95"]

1. d4 {[%clk 0:03:00]}  Nf6 {[%clk 0:02:36]} 2. Nc3 {[%clk 0:03:00]}  d5 {[%clk 0:02:33]} 3. Bf4 {[%clk 0:03:01]}  g6 {[%clk 0:02:29]} 4. e3 {[%clk 0:03:00]}  Bg7 {[%clk 0:02:29]} 5. h4 {[%clk 0:03:00]}  h5 {[%clk 0:02:27]} 6. Qd2 {[%clk 0:02:58]}  c6 {[%clk 0:02:27]} 7. Nf3 {[%clk 0:02:58]}  b5 {[%clk 0:02:27]} 8. Ne5 {[%clk 0:02:56]}  Nfd7 {[%clk 0:02:25]} 9. Nd3 {[%clk 0:02:51]}  Nb6 {[%clk 0:02:24]} 10. b3 {[%clk 0:02:46]}  N8d7 {[%clk 0:02:16]} 11. Be2 {[%clk 0:02:43]}  b4 {[%clk 0:02:13]} 12. Nd1 {[%clk 0:02:05]}  a5 {[%clk 0:02:11]} 13. Rc1 {[%clk 0:02:02]}  O-O {[%clk 0:02:09]} 14. O-O {[%clk 0:02:02]}  e5 {[%clk 0:02:06]} 15. dxe5 {[%clk 0:01:59]}  Qxh4 {[%clk 0:02:01]} 16. c3 {[%clk 0:01:52]}  c5 {[%clk 0:01:24]} 17. Bf3 {[%clk 0:01:41]}  c4 {[%clk 0:01:11]} 18. bxc4 {[%clk 0:01:33]}  Nxc4 {[%clk 0:01:12]} 19. Qe2 {[%clk 0:01:29]}  Ndxe5 {[%clk 0:01:09]} 20. Bxd5 {[%clk 0:01:20]}  Ba6 {[%clk 0:00:35]} 21. cxb4 {[%clk 0:01:15]}  Nxd3 {[%clk 0:00:29]} 22. Qxd3 {[%clk 0:00:39]}  Nb6 {[%clk 0:00:26]} 23. b5 {[%clk 0:00:36]}  Nxd5 {[%clk 0:00:25]} 24. Qxd5 {[%clk 0:00:34]}  Rad8 {[%clk 0:00:20]} 25. Qf3 {[%clk 0:00:33]}  Bxb5 {[%clk 0:00:20]} 26. Re1 {[%clk 0:00:33]}  g5 {[%clk 0:00:15]} 27. Bg3 {[%clk 0:00:32]}  Qg4 {[%clk 0:00:14]} 28. Qxg4 {[%clk 0:00:31]}  hxg4 {[%clk 0:00:15]} 29. Nc3 {[%clk 0:00:30]}  Ba6 {[%clk 0:00:13]} 30. Ne4 {[%clk 0:00:29]}  Rd5 {[%clk 0:00:11]} 31. Rc6 {[%clk 0:00:26]}  Bb7 {[%clk 0:00:11]} 32. Rb6 {[%clk 0:00:26]}  Ba8 {[%clk 0:00:10]} 33. Bd6 {[%clk 0:00:18]}  Rd8 {[%clk 0:00:09]} 34. Be7 {[%clk 0:00:19]}  Rd1 {[%clk 0:00:09]} 35. Bxd8 {[%clk 0:00:14]}  Rxe1+ {[%clk 0:00:08]} 36. Kh2 {[%clk 0:00:14]}  Bxe4 {[%clk 0:00:09]} 37. Bxg5 {[%clk 0:00:13]}  Kf8 {[%clk 0:00:08]} 38. Rb8# {[%clk 0:00:12]} 1-0


[Site "https://www.chess.com"]

[Event "Titled Tuesday Blitz June 20 Late 2023"]
[White "ATM622"]
[Black "Miszler, Levente"]
[BlackFideId "763276"]
[WhiteElo "2632"]
[BlackElo "2176"]
[Result "1-0"]
[Round "3"]
[TimeControl "180+2"]
[Date "2023.06.20"]
[WhiteClock "0:00:09"]
[BlackClock "0:00:50"]
[Board "96"]

1. d4 {[%clk 0:03:00]}  Nf6 {[%clk 0:02:57]} 2. c4 {[%clk 0:03:01]}  e5 {[%clk 0:02:58]} 3. dxe5 {[%clk 0:03:00]}  Ng4 {[%clk 0:02:58]} 4. Nf3 {[%clk 0:03:00]}  Bc5 {[%clk 0:02:58]} 5. e3 {[%clk 0:03:00]}  Nc6 {[%clk 0:02:57]} 6. Nc3 {[%clk 0:02:57]}  Ngxe5 {[%clk 0:02:56]} 7. Nxe5 {[%clk 0:02:58]}  Nxe5 {[%clk 0:02:56]} 8. Be2 {[%clk 0:02:58]}  O-O {[%clk 0:02:51]} 9. O-O {[%clk 0:02:58]}  a5 {[%clk 0:02:51]} 10. e4 {[%clk 0:02:56]}  Ra6 {[%clk 0:02:45]} 11. Bf4 {[%clk 0:02:54]}  Re8 {[%clk 0:02:41]} 12. a3 {[%clk 0:02:39]}  Rg6 {[%clk 0:02:38]} 13. Bh5 {[%clk 0:02:36]}  Rc6 {[%clk 0:02:32]} 14. Rb1 {[%clk 0:02:26]}  Nxc4 {[%clk 0:02:24]} 15. Bxf7+ {[%clk 0:01:26]}  Kxf7 {[%clk 0:02:24]} 16. Qd5+ {[%clk 0:01:25]}  Rce6 {[%clk 0:02:24]} 17. Qxc4 {[%clk 0:01:24]}  d6 {[%clk 0:02:12]} 18. b4 {[%clk 0:01:20]}  axb4 {[%clk 0:02:12]} 19. axb4 {[%clk 0:01:20]}  Bb6 {[%clk 0:02:12]} 20. Nd5 {[%clk 0:01:19]}  Kf8 {[%clk 0:02:07]} 21. Nxb6 {[%clk 0:01:17]}  Rxe4 {[%clk 0:02:02]} 22. Qd5 {[%clk 0:01:00]}  Rxf4 {[%clk 0:01:56]} 23. Nxc8 {[%clk 0:01:00]}  Qxc8 {[%clk 0:01:54]} 24. b5 {[%clk 0:01:01]}  Rf5 {[%clk 0:01:50]} 25. Qd4 {[%clk 0:00:58]}  Qd7 {[%clk 0:01:45]} 26. b6 {[%clk 0:00:40]}  c5 {[%clk 0:01:41]} 27. Qd3 {[%clk 0:00:34]}  d5 {[%clk 0:01:37]} 28. Rfe1 {[%clk 0:00:16]}  Rxe1+ {[%clk 0:01:17]} 29. Rxe1 {[%clk 0:00:17]}  d4 {[%clk 0:01:18]} 30. h3 {[%clk 0:00:11]}  g6 {[%clk 0:01:14]} 31. Qe4 {[%clk 0:00:11]}  Rf6 {[%clk 0:01:10]} 32. Qe5 {[%clk 0:00:09]}  Rxb6 {[%clk 0:00:50]} 33. Qh8+ {[%clk 0:00:09]} 1-0


[Site "https://www.chess.com"]